fUST/lending_fUST_20260111
["ID","MTS","AMOUNT","RATE_DAILY","PERIOD"]
[401242219,1768066238593,-500.0,0.00010896,2]
[401242220,1768066238602,-500.0,0.00010896,2]
[401242221,1768066238613,-500.0,0.00010896,2]
[401242222,1768066238622,-500.0,0.00010896,2]
[401242223,1768066238632,-500.0,0.00010896,2]
[401242224,1768066238642,-500.0,0.00010896,2]
[401242225,1768066238653,-500.0,0.00010896,2]
[401242226,1768066238662,-500.0,0.00010896,2]
[401242227,1768066238672,-500.0,0.00010896,2]
[401242228,1768066238682,-500.0,0.00010896,2]
[401242229,1768066238692,-500.0,0.00010896,2]
[401242230,1768066238702,-500.0,0.00010896,2]
[401242231,1768066238712,-500.0,0.00010896,2]
[401242232,1768066238722,-500.0,0.00010896,2]
[401242233,1768066238732,-500.0,0.00010896,2]
[401242234,1768066238742,-500.0,0.00010896,2]
[401242235,1768066238751,-500.0,0.00010896,2]
[401242236,1768066238761,-500.0,0.00010896,2]
[401242237,1768066238771,-500.0,0.00010896,2]
[401242238,1768066238781,-500.0,0.00010896,2]
[401242239,1768066238791,-500.0,0.00010896,2]
[401242240,1768066238800,-500.0,0.00010896,2]
[401242241,1768066238810,-500.0,0.00010896,2]
[401242242,1768066238819,-500.0,0.00010896,2]
[401242243,1768066238829,-500.0,0.00010896,2]
[401242244,1768066238838,-500.0,0.00010896,2]
[401242245,1768066238849,-558.3747838,0.00010896,2]
[401242246,1768066238859,-500.0,0.00010896,2]
[401242247,1768066238869,-500.0,0.00010896,2]
[401242248,1768066238879,-500.0,0.00010896,2]
[401242249,1768066238889,-500.0,0.00010896,2]
[401242250,1768066238900,-500.0,0.00010896,2]
[401242251,1768066238910,-500.0,0.00010896,2]
[401242252,1768066238920,-500.0,0.00010896,2]
[401242253,1768066238931,-500.0,0.00010896,2]
[401242254,1768066238941,-500.0,0.00010896,2]
[401242255,1768066238951,-500.0,0.00010896,2]
[401242256,1768066238960,-500.0,0.00010896,2]
[401242257,1768066238970,-500.0,0.00010896,2]
[401242258,1768066238980,-500.0,0.00010896,2]
[401242259,1768066238990,-500.0,0.00010896,2]
[401242260,1768066239001,-500.0,0.00010896,2]
[401242261,1768066239011,-500.0,0.00010896,2]
[401242262,1768066239022,-500.0,0.00010896,2]
[401242263,1768066239032,-500.0,0.00010896,2]
[401242264,1768066239042,-500.0,0.00010896,2]
[401242265,1768066239052,-561.92975719,0.00010896,2]
[401242266,1768066239062,-500.0,0.00010896,2]
[401242267,1768066239073,-500.0,0.00010896,2]
[401242268,1768066239083,-500.0,0.00010896,2]
[401242269,1768066239093,-500.0,0.00010896,2]
[401242270,1768066239103,-500.0,0.00010896,2]
[401242271,1768066239113,-500.0,0.00010896,2]
[401242272,1768066239122,-500.0,0.00010896,2]
[401242273,1768066239132,-13586.9575574,0.00010897,2]
[401242274,1768066239149,-999.0,0.00010959,2]
[401242275,1768066239159,-579.1272399,0.00010993,2]
[401242276,1768066239168,-1000000.0,0.00010994,2]
[401242277,1768066239178,-420.0,0.00010996,2]
[401242278,1768066239187,-1680.0,0.00010996,2]
[401242279,1768066239197,-373.0,0.00010996,2]
[401242280,1768066239206,-800.10001,0.00010999,2]
[401242281,1768066239215,-440.15,0.00011097,2]
[401242282,1768066239224,-500.0,0.00011098,2]
[401242283,1768066239233,-151.0,0.000111,2]
[401242284,1768066239243,-151.0,0.000111,2]
[401242285,1768066239252,-151.0,0.000111,2]
[401242286,1768066239266,-151.0,0.000111,2]
[401242287,1768066239276,-151.0,0.000111,2]
[401242288,1768066239285,-151.0,0.000111,2]
[401242289,1768066239294,-151.0,0.000111,2]
[401242290,1768066239304,-151.0,0.000111,2]
[401242291,1768066239313,-151.0,0.000111,2]
[401242292,1768066239323,-151.0,0.000111,2]
[401242294,1768066239333,-151.0,0.000111,2]
[401242295,1768066239343,-151.0,0.000111,2]
[401242296,1768066239352,-440.15,0.00011371,2]
[401242297,1768066239361,-500.0,0.00011372,2]
[401242298,1768066239370,-720.0,0.00011439,2]
[401242299,1768066239379,-440.15,0.00011645,2]
[401242300,1768066239389,-319.54093411,0.00011646,2]
[401242301,1768066239399,-440.15,0.00011919,2]
[401242302,1768066239409,-480.0,0.00012095,2]
[401242303,1768066239419,-2130.0,0.00012095,2]
[401242304,1768066239429,-440.16267094,0.00012193,2]
[401242305,1768066239440,-11619.37,0.00012329,2]
[401242306,1768066239450,-9940.99,0.00012329,2]
[401242307,1768066239459,-8284.16,0.00012329,2]
[401242308,1768066239469,-6903.47,0.00012329,2]
[401242309,1768066239478,-5752.89,0.00012329,2]
[401242310,1768066239487,-4794.08,0.00012329,2]
[401242311,1768066239497,-3995.06,0.00012329,2]
[401242312,1768066239507,-3329.22,0.00012329,2]
[401242313,1768066239516,-2774.35,0.00012329,2]
[401242314,1768066239525,-2311.96,0.00012329,2]
[401242315,1768066239536,-1926.63,0.00012329,2]
[401242317,1768066239545,-1605.53,0.00012329,2]
[401242318,1768066239555,-1337.94,0.00012329,2]
[401242319,1768066239565,-1114.95,0.00012329,2]
[401242320,1768066239574,-929.12,0.00012329,2]
[401242321,1768066239583,-774.27,0.00012329,2]
[401242322,1768066239593,-645.22,0.00012329,2]
[401242323,1768066239602,-537.69,0.00012329,2]
[401242324,1768066239612,-448.07,0.00012329,2]
[401242325,1768066239621,-373.39,0.00012329,2]
[401242326,1768066239630,-311.16,0.00012329,2]
[401242327,1768066239639,-259.3,0.00012329,2]
[401242328,1768066239650,-216.09,0.00012329,2]
[401242329,1768066239659,-180.07,0.00012329,2]
[401242330,1768066239669,-150.06,0.00012329,2]
[401242331,1768066239678,-750.32,0.00012329,2]
[401242332,1768066239688,-635.95077479,0.00012329,2]
[401242333,1768066239698,-635.95077479,0.00012329,2]
[401242335,1768066239707,-635.95077479,0.00012329,2]
[401242336,1768066239717,-635.95077479,0.00012329,2]
[401242337,1768066239726,-635.95077479,0.00012329,2]
[401242338,1768066239736,-635.95077479,0.00012329,2]
[401242339,1768066239745,-635.95077479,0.00012329,2]
[401242341,1768066239754,-635.95077479,0.00012329,2]
[401242342,1768066239764,-635.95077479,0.00012329,2]
[401242344,1768066239773,-635.95077479,0.00012329,2]
[401242345,1768066239783,-635.95077479,0.00012329,2]
[401242346,1768066239793,-635.95077479,0.00012329,2]
[401242347,1768066239802,-635.95077479,0.00012329,2]
[401242348,1768066239812,-635.95077479,0.00012329,2]
[401242349,1768066239822,-635.95077479,0.00012329,2]
[401242350,1768066239831,-635.95077479,0.00012329,2]
[401242351,1768066239841,-635.95077479,0.00012329,2]
[401242352,1768066239850,-635.95077479,0.00012329,2]
[401242354,1768066239860,-635.95077479,0.00012329,2]
[401242356,1768066239869,-635.95077479,0.00012329,2]
[401242358,1768066239878,-635.95077479,0.00012329,2]
[401242360,1768066239887,-635.95077479,0.00012329,2]
[401242361,1768066239897,-635.95077479,0.00012329,2]
[401242364,1768066239907,-635.95077479,0.00012329,2]
[401242366,1768066239917,-635.95077479,0.00012329,2]
[401242367,1768066239926,-635.95077479,0.00012329,2]
[401242369,1768066239936,-635.95077479,0.00012329,2]
[401242371,1768066239946,-635.95077479,0.00012329,2]
[401242374,1768066239958,-635.95077479,0.00012329,2]
[401242376,1768066239967,-635.95077479,0.00012329,2]
[401242377,1768066239976,-635.95077479,0.00012329,2]
[401242379,1768066239985,-635.95077479,0.00012329,2]
[401242381,1768066239995,-635.95077479,0.00012329,2]
[401242383,1768066240005,-635.95077479,0.00012329,2]
[401242385,1768066240015,-635.95077479,0.00012329,2]
[401242387,1768066240024,-635.95077479,0.00012329,2]
[401242390,1768066240035,-635.95077479,0.00012329,2]
[401242391,1768066240044,-635.95077479,0.00012329,2]
[401242393,1768066240053,-635.95077479,0.00012329,2]
[401242395,1768066240062,-635.95077479,0.00012329,2]
[401242397,1768066240072,-635.95077479,0.00012329,2]
[401242399,1768066240081,-635.95077479,0.00012329,2]
[401242401,1768066240091,-635.95077479,0.00012329,2]
[401242403,1768066240101,-635.95077479,0.00012329,2]
[401242405,1768066240111,-635.95077479,0.00012329,2]
[401242408,1768066240121,-635.95077479,0.00012329,2]
[401242410,1768066240131,-635.95077479,0.00012329,2]
[401242411,1768066240141,-635.95077479,0.00012329,2]
[401242413,1768066240151,-635.95077479,0.00012329,2]
[401242415,1768066240161,-635.95077479,0.00012329,2]
[401242417,1768066240171,-635.95077479,0.00012329,2]
[401242419,1768066240181,-635.95077479,0.00012329,2]
[401242421,1768066240191,-635.95077479,0.00012329,2]
[401242423,1768066240200,-635.95077479,0.00012329,2]
[401242425,1768066240209,-635.95077479,0.00012329,2]
[401242427,1768066240219,-635.95077479,0.00012329,2]
[401242429,1768066240229,-635.95077479,0.00012329,2]
[401242431,1768066240239,-864.0,0.00012583,2]
[401242433,1768066240248,-585.10841417,0.00012705,2]
[401242435,1768066240257,-500.0,0.00012709,2]
[401242437,1768066240272,-500.0,0.00012709,2]
[401242440,1768066240282,-500.0,0.00012709,2]
[401242441,1768066240292,-500.0,0.00012709,2]
[401242443,1768066240302,-123719.060364,0.00012709,2]
[401242446,1768066240312,-4907.62073648,0.00012765,2]
[401242448,1768066240322,-500.0,0.00012846,2]
[401242450,1768066240331,-500.0,0.00012846,2]
[401242451,1768066240341,-500.0,0.00012846,2]
[401242453,1768066240351,-500.0,0.00012846,2]
[401242455,1768066240360,-177.0,0.00012918,2]
[401242457,1768066240370,-210.53229853,0.00012983,2]
[401242459,1768066240379,-500.0,0.00012983,2]
[401242462,1768066240390,-500.0,0.00012983,2]
[401242463,1768066240401,-500.0,0.00012983,2]
[401242465,1768066240410,-200.0,0.00012983,2]
[401242467,1768066240420,-500.0,0.00012983,2]
[401242469,1768066240429,-7142.16034431,0.00013,2]
[401242471,1768066240438,-245.94179051,0.00013,3]
[401242473,1768066240447,-500.0,0.0001312,2]
[401242475,1768066240456,-500.0,0.0001312,2]
[401242477,1768066240466,-250.0,0.00013209,2]
[401242479,1768066240475,-500.0,0.00013257,2]
[401242481,1768066240484,-500.0,0.00013257,2]
[401242483,1768066240495,-258.0,0.00013257,2]
[401242485,1768066240504,-500.0,0.00013394,2]
[401242487,1768066240513,-250.0,0.00013394,2]
[401242489,1768066240524,-500.0,0.00013394,2]
[401242491,1768066240533,-500.0,0.00013531,2]
[401242492,1768066240542,-500.0,0.00013531,2]
[401242493,1768066240552,-500.0,0.00013668,2]
[401242494,1768066240561,-300.0,0.00013668,2]
[401242495,1768066240569,-150.1,0.00013699,2]
[401242496,1768066240578,-500.0,0.00013699,2]
[401242497,1768066240588,-500.0,0.00013805,2]
[401242498,1768066240597,-1000.0,0.00013841,2]
[401242499,1768066240607,-500.0,0.00013942,2]
[401242500,1768066240616,-500.0,0.00014079,2]
[401242501,1768066240625,-500.0,0.00014216,2]
[401242502,1768066240634,-1000.0,0.00014247,2]
[401242503,1768066240744,-500.0,0.00014353,2]
[401242504,1768066240772,-489.65888898,0.0001449,2]
[401242506,1768066240782,-1500.0,0.00014795,2]
[401242508,1768066240791,-204.0,0.00014918,2]
[401242510,1768066240801,-500.0,0.00015206,2]
[401242511,1768066240811,-1000.0,0.00015225,2]
[401242513,1768066240822,-244.0,0.00015225,2]
[401242515,1768066240831,-498.9723282,0.00015342,2]
[401242517,1768066240840,-500.0,0.00015343,2]
[401242518,1768066240849,-500.88241622,0.0001548,2]
[401242519,1768066240857,-200.0,0.0001548,2]
[401242520,1768066240866,-250.0,0.00015891,2]
[401242521,1768066240877,-250.0,0.00015891,2]
[401242522,1768066240886,-250.0,0.00015891,2]
[401242523,1768066240898,-1000.0,0.00016748,2]
[401242524,1768066240907,-492.0,0.00016748,2]
[401242525,1768066240917,-231.0,0.00016918,2]
[401242526,1768066240929,-10383.59895371,0.00017,2]
[401242527,1768066240938,-2338.09322302,0.00018085,2]
[401242528,1768066240948,-1000.0,0.00018422,2]
[401242529,1768066240957,-791.0,0.00018422,2]
[401242530,1768066240966,-303.10001603,0.000189,2]
[401242531,1768066240976,-258.0,0.00018918,2]
[401242532,1768066240985,-198.62096574,0.00019089,2]
[401242533,1768066240994,-352.89,0.00019178,2]
[401242534,1768066241003,-177.03,0.000201,2]
[401242535,1768066241013,-6834.71,0.000201,2]
[401242536,1768066241023,-1000.0,0.00020265,2]
[401242537,1768066241033,-1000.0,0.00020265,2]
[401242538,1768066241042,-285.0,0.00020918,2]
[401242539,1768066241052,-1000.0,0.00022291,10]
[401242540,1768066241061,-1000.0,0.00022291,10]
[401242541,1768066241071,-579.0,0.00022291,10]
[401242542,1768066241081,-194.24590261,0.00022782,2]
[401242543,1768066241090,-1041.66666667,0.00022785,2]
[401242544,1768066241100,-312.0,0.00022918,2]
[401242545,1768066241109,-1000.0,0.0002452,10]
[401242546,1768066241120,-1000.0,0.0002452,10]
[401242547,1768066241130,-1000.0,0.0002452,10]
[401242548,1768066241140,-218.0,0.00024849,14]
[401242549,1768066241151,-339.0,0.00024918,2]
[401242550,1768066241159,-250.0,0.00025343,2]
[401242551,1768066241169,-366.0,0.00026918,2]
[401242552,1768066241179,-1000.0,0.00026972,30]
[401242553,1768066241189,-1000.0,0.00026972,30]
[401242554,1768066241198,-1000.0,0.00026972,30]
[401242555,1768066241211,-715.0,0.00026972,30]
[401242556,1768066241221,-1500.0,0.00027,2]
[401242557,1768066241231,-500.0,0.00027112,7]
[401242558,1768066241242,-15326.28285121,0.00028,2]
[401242559,1768066241252,-520.27726249,0.00028,2]
[401242560,1768066241263,-169.0,0.00028137,28]
[401242561,1768066241275,-393.0,0.00028918,2]
[401242562,1768066241285,-900.827532,0.00029157,2]
[401242563,1768066241294,-1000.0,0.00029669,30]
[401242564,1768066241304,-1000.0,0.00029669,30]
[401242565,1768066241315,-1000.0,0.00029669,30]
[401242566,1768066241324,-516.35781364,0.00030752,7]
[401242567,1768066241334,-420.0,0.00030918,2]
[401242568,1768066241343,-155.0,0.00031425,46]
[401242569,1768066241353,-163.08,0.00031487,2]
[401242570,1768066241363,-999.0,0.00032876,120]
[401242571,1768066241374,-447.0,0.00032918,120]
[401242572,1768066241385,-9999.3338094,0.00033162,2]
[401242573,1768066241395,-210.0,0.00033699,5]
[401242574,1768066241406,-999.0,0.00033972,120]
[401242575,1768066241416,-151.67,0.00034332,60]
[401242576,1768066241426,-734.0,0.00034387,30]
[401242577,1768066241437,-324.5,0.00034387,30]
[401242578,1768066241447,-151.67,0.00034432,60]
[401242579,1768066241457,-270.0,0.00034521,5]
[401242580,1768066241466,-151.67,0.00034532,60]
[401242581,1768066241476,-5058.79910613,0.00034618,46]
[401242582,1768066241487,-151.67,0.00034632,60]
[401242583,1768066241496,-151.67,0.00034732,60]
[401242584,1768066241506,-151.67,0.00034832,60]
[401242585,1768066241517,-474.0,0.00034918,120]
[401242586,1768066241526,-151.67,0.00034932,60]
[401242587,1768066241536,-151.67,0.00035032,60]
[401242588,1768066241546,-999.0,0.00035068,120]
[401242589,1768066241555,-151.67,0.00035132,60]
[401242590,1768066241565,-151.67,0.00035232,60]
[401242591,1768066241574,-151.67,0.00035332,60]
[401242592,1768066241583,-330.0,0.00035342,5]
[401242593,1768066241592,-151.77,0.00035432,60]
[401242594,1768066241602,-500.0,0.00035616,30]
[401242595,1768066241611,-334.34878739,0.00035616,7]
[401242596,1768066241620,-665.332,0.00035659,42]
[401242597,1768066241629,-156.012,0.00035678,2]
[401242598,1768066241638,-156.012,0.00035778,2]
[401242599,1768066241647,-156.012,0.00035878,2]
[401242600,1768066241658,-256841.95839655,0.00035937,4]
[401242601,1768066241668,-258.38,0.00035972,2]
[401242602,1768066241677,-156.012,0.00035978,2]
[401242603,1768066241687,-20844.54809533,0.00036,120]
[401242604,1768066241696,-156.012,0.00036078,2]
[401242605,1768066241707,-377.1655679,0.00036082,30]
[401242606,1768066241717,-377.1655679,0.00036082,30]
[401242607,1768066241727,-376.6134449,0.00036082,30]
[401242608,1768066241738,-731.96785671,0.00036164,120]
[401242609,1768066241747,-500.0,0.00036164,30]
[401242610,1768066241756,-180.020001,0.00036164,5]
[401242611,1768066241767,-161.0,0.00036356,87]
[401242612,1768066241778,-453.20238296,0.00036612,2]
[401242613,1768066241789,-453.20238294,0.0003665,2]
[401242614,1768066241799,-453.20238294,0.00036687,2]
[401242615,1768066241808,-500.0,0.00036712,30]
[401242616,1768066241818,-500.0,0.00036712,30]
[401242617,1768066241836,-500.0,0.00036712,30]
[401242618,1768066241846,-500.0,0.00036712,30]
[401242619,1768066241855,-500.17912256,0.00036712,30]
[401242620,1768066241865,-500.0,0.00036712,2]
[401242621,1768066241875,-16189.62,0.00036712,30]
[401242622,1768066241885,-16189.62,0.00036712,30]
[401242623,1768066241895,-16189.62,0.00036712,30]
[401242624,1768066241905,-16189.62,0.00036712,30]
[401242625,1768066241916,-16189.62,0.00036712,30]
[401242626,1768066241927,-16189.62,0.00036712,30]
[401242627,1768066241937,-16189.62,0.00036712,30]
[401242628,1768066241946,-16189.62,0.00036712,30]
[401242629,1768066241955,-16189.62,0.00036712,30]
[401242630,1768066241965,-16189.62,0.00036712,30]
[401242631,1768066241975,-16189.62,0.00036712,30]
[401242632,1768066241984,-16189.62,0.00036712,30]
[401242633,1768066241993,-16189.62,0.00036712,30]
[401242634,1768066242003,-16189.62,0.00036712,30]
[401242635,1768066242012,-16189.62,0.00036712,30]
[401242636,1768066242021,-16189.62,0.00036712,30]
[401242637,1768066242031,-16189.62,0.00036712,30]
[401242638,1768066242040,-2479.36,0.00036712,30]
[401242639,1768066242049,-16189.62,0.00036712,30]
[401242640,1768066242059,-2479.36,0.00036712,30]
[401242641,1768066242069,-2479.36,0.00036712,30]
[401242642,1768066242078,-16189.62,0.00036712,30]
[401242643,1768066242087,-2479.36,0.00036712,30]
[401242644,1768066242097,-16189.62,0.00036712,30]
[401242645,1768066242107,-2479.36,0.00036712,30]
[401242646,1768066242116,-16189.62,0.00036712,30]
[401242647,1768066242126,-2479.36,0.00036712,30]
[401242648,1768066242135,-16189.62,0.00036712,30]
[401242649,1768066242146,-16189.62,0.00036712,30]
[401242650,1768066242156,-2479.36,0.00036712,30]
[401242651,1768066242166,-16189.70100427,0.00036712,30]
[401242652,1768066242176,-2479.36,0.00036712,30]
[401242653,1768066242185,-2479.36,0.00036712,30]
[401242654,1768066242195,-2479.36,0.00036712,30]
[401242655,1768066242205,-2479.36,0.00036712,30]
[401242656,1768066242215,-2479.36,0.00036712,30]
[401242657,1768066242224,-2479.36,0.00036712,30]
[401242658,1768066242234,-2479.36,0.00036712,30]
[401242659,1768066242243,-2479.36,0.00036712,30]
[401242660,1768066242252,-2479.36,0.00036712,30]
[401242661,1768066242264,-2479.36,0.00036712,30]
[401242662,1768066242274,-2479.36,0.00036712,30]
[401242663,1768066242283,-2479.36,0.00036712,30]
[401242664,1768066242293,-2479.36,0.00036712,30]
[401242666,1768066242303,-2479.36,0.00036712,30]
[401242667,1768066242313,-2479.36,0.00036712,30]
[401242668,1768066242322,-2479.36,0.00036712,30]
[401242669,1768066242331,-2479.42,0.00036712,30]
[401242670,1768066242341,-2192.87,0.00036712,30]
[401242671,1768066242350,-2192.87,0.00036712,30]
[401242672,1768066242360,-2192.87,0.00036712,30]
[401242673,1768066242370,-2195.79,0.00036712,30]
[401242674,1768066242379,-2192.87,0.00036712,30]
[401242675,1768066242388,-2195.79,0.00036712,30]
[401242676,1768066242397,-2192.87,0.00036712,30]
[401242677,1768066242408,-2195.79,0.00036712,30]
[401242678,1768066242417,-2192.87,0.00036712,30]
[401242679,1768066242426,-2195.79,0.00036712,30]
[401242680,1768066242435,-2192.87,0.00036712,30]
[401242681,1768066242444,-2192.87,0.00036712,30]
[401242682,1768066242453,-2195.79,0.00036712,30]
[401242683,1768066242463,-2192.87,0.00036712,30]
[401242684,1768066242472,-2195.79,0.00036712,30]
[401242685,1768066242482,-2192.87,0.00036712,30]
[401242686,1768066242491,-2195.79,0.00036712,30]
[401242687,1768066242501,-2192.87,0.00036712,30]
[401242688,1768066242510,-2195.79,0.00036712,30]
[401242689,1768066242520,-2195.79,0.00036712,30]
[401242690,1768066242529,-2192.87,0.00036712,30]
[401242691,1768066242539,-2195.79,0.00036712,30]
[401242692,1768066242548,-2192.87,0.00036712,30]
[401242693,1768066242558,-2195.79,0.00036712,30]
[401242694,1768066242567,-2192.87,0.00036712,30]
[401242695,1768066242577,-2195.79,0.00036712,30]
[401242696,1768066242587,-2192.87,0.00036712,30]
[401242697,1768066242597,-2195.79,0.00036712,30]
[401242698,1768066242606,-2192.87,0.00036712,30]
[401242699,1768066242616,-2192.87,0.00036712,30]
[401242700,1768066242626,-2195.79,0.00036712,30]
[401242701,1768066242636,-2192.87,0.00036712,30]
[401242702,1768066242646,-2195.79,0.00036712,30]
[401242703,1768066242656,-2192.87,0.00036712,30]
[401242704,1768066242666,-2195.79,0.00036712,30]
[401242705,1768066242675,-2192.87,0.00036712,30]
[401242706,1768066242684,-2195.79,0.00036712,30]
[401242707,1768066242693,-2192.87,0.00036712,30]
[401242708,1768066242703,-2195.79,0.00036712,30]
[401242709,1768066242713,-4887.27,0.00036712,30]
[401242710,1768066242723,-2192.87,0.00036712,30]
[401242711,1768066242733,-2195.79,0.00036712,30]
[401242712,1768066242743,-4887.27,0.00036712,30]
[401242713,1768066242753,-2192.87,0.00036712,30]
[401242714,1768066242762,-2195.79,0.00036712,30]
[401242715,1768066242772,-2192.89,0.00036712,30]
[401242716,1768066242782,-2195.79,0.00036712,30]
[401242717,1768066242791,-4887.27,0.00036712,30]
[401242718,1768066242801,-2195.79,0.00036712,30]
[401242719,1768066242811,-4887.27,0.00036712,30]
[401242720,1768066242820,-2195.79,0.00036712,30]
[401242721,1768066242830,-4887.27,0.00036712,30]
[401242722,1768066242839,-2195.88,0.00036712,30]
[401242723,1768066242848,-4887.27,0.00036712,30]
[401242724,1768066242856,-4887.27,0.00036712,30]
[401242725,1768066242867,-4887.27,0.00036712,30]
[401242726,1768066242876,-4887.27,0.00036712,30]
[401242727,1768066242885,-4887.27,0.00036712,30]
[401242728,1768066242895,-4887.27,0.00036712,30]
[401242729,1768066242904,-4887.27,0.00036712,30]
[401242730,1768066242914,-4887.27,0.00036712,30]
[401242731,1768066242924,-4887.27,0.00036712,30]
[401242732,1768066242934,-4887.27,0.00036712,30]
[401242733,1768066242945,-4887.27,0.00036712,30]
[401242734,1768066242954,-4887.27,0.00036712,30]
[401242735,1768066242964,-4887.27,0.00036712,30]
[401242736,1768066242973,-4887.27,0.00036712,30]
[401242737,1768066242983,-4887.27,0.00036712,30]
[401242738,1768066242993,-4887.27,0.00036712,30]
[401242739,1768066243004,-26257.46,0.00036712,30]
[401242740,1768066243014,-26257.46,0.00036712,30]
[401242741,1768066243024,-26257.46,0.00036712,30]
[401242742,1768066243034,-4887.27,0.00036712,30]
[401242743,1768066243044,-26257.46,0.00036712,30]
[401242744,1768066243055,-4887.27,0.00036712,30]
[401242745,1768066243065,-26257.46,0.00036712,30]
[401242746,1768066243074,-4887.3,0.00036712,30]
[401242747,1768066243084,-26257.46,0.00036712,30]
[401242748,1768066243093,-26257.46,0.00036712,30]
[401242749,1768066243103,-26257.46,0.00036712,30]
[401242750,1768066243112,-26257.46,0.00036712,30]
[401242751,1768066243122,-26257.46,0.00036712,30]
[401242752,1768066243133,-26257.46,0.00036712,30]
[401242753,1768066243143,-26257.46,0.00036712,30]
[401242754,1768066243153,-26257.46,0.00036712,30]
[401242755,1768066243162,-26257.46,0.00036712,30]
[401242756,1768066243172,-26257.46,0.00036712,30]
[401242757,1768066243181,-26257.46,0.00036712,30]
[401242758,1768066243191,-26257.46,0.00036712,30]
[401242759,1768066243200,-26257.46,0.00036712,30]
[401242760,1768066243209,-26257.46,0.00036712,30]
[401242761,1768066243218,-26257.46,0.00036712,30]
[401242762,1768066243229,-26257.46,0.00036712,30]
[401242763,1768066243239,-26257.46,0.00036712,30]
[401242764,1768066243248,-26257.46,0.00036712,30]
[401242765,1768066243258,-26257.54452659,0.00036712,30]
[401242766,1768066243271,-241.15003758,0.00036712,120]
[401242767,1768066243280,-5048.48,0.00036712,30]
[401242768,1768066243290,-5048.48,0.00036712,30]
[401242769,1768066243299,-5048.48,0.00036712,30]
[401242770,1768066243308,-5048.48,0.00036712,30]
[401242771,1768066243317,-5048.48,0.00036712,30]
[401242772,1768066243327,-5048.48,0.00036712,30]
[401242773,1768066243336,-5048.48,0.00036712,30]
[401242774,1768066243345,-5048.48,0.00036712,30]
[401242775,1768066243354,-5048.48,0.00036712,30]
[401242776,1768066243363,-5048.48,0.00036712,30]
[401242777,1768066243373,-5048.48,0.00036712,30]
[401242778,1768066243385,-5048.48,0.00036712,30]
[401242779,1768066243396,-5048.48,0.00036712,30]
[401242780,1768066243408,-5048.48,0.00036712,30]
[401242781,1768066243419,-5048.48,0.00036712,30]
[401242782,1768066243428,-5048.48,0.00036712,30]
[401242783,1768066243438,-5048.48,0.00036712,30]
[401242784,1768066243449,-5048.48,0.00036712,30]
[401242785,1768066243459,-5048.48,0.00036712,30]
[401242786,1768066243468,-5048.48,0.00036712,30]
[401242787,1768066243478,-5048.48,0.00036712,30]
[401242788,1768066243487,-5048.48,0.00036712,30]
[401242789,1768066243498,-5048.48,0.00036712,30]
[401242790,1768066243508,-5048.65,0.00036712,30]
[401242791,1768066243518,-500.0,0.00036712,2]
[401242792,1768066243527,-500.0,0.00036712,2]
[401242793,1768066243538,-500.0,0.00036712,2]
[401242794,1768066243550,-500.0,0.00036712,2]
[401242795,1768066243559,-500.0,0.00036712,2]
[401242796,1768066243568,-500.0,0.00036712,2]
[401242797,1768066243578,-500.0,0.00036712,2]
[401242798,1768066243587,-500.0,0.00036712,2]
[401242799,1768066243596,-500.0,0.00036712,2]